fUSD/lending_fUSD_20251130
["ID","MTS","AMOUNT","RATE_DAILY","PERIOD"]
[395135932,1764467440869,-519.40128086,0.00014609,2]
[395135933,1764467440879,-500.0,0.00014609,2]
[395135934,1764467440889,-30777.44,0.00014623,2]
[395135935,1764467440898,-803.0,0.00014627,2]
[395135936,1764467440908,-150.0,0.00014627,2]
[395135937,1764467440917,-500.0,0.00014627,2]
[395135938,1764467440926,-150.0,0.00014627,2]
[395135939,1764467440935,-500.0,0.00014627,2]
[395135940,1764467440944,-222.23133542,0.0001466,2]
[395135941,1764467440954,-416.537821,0.00014663,2]
[395135942,1764467440964,-250.0,0.00014664,2]
[395135943,1764467440973,-15868.45320655,0.0001467,2]
[395135944,1764467440983,-18753.694309,0.00014678,2]
[395135945,1764467440995,-500.0,0.00014746,2]
[395135946,1764467441005,-803.0,0.00014764,2]
[395135947,1764467441015,-150.0,0.00014764,2]
[395135948,1764467441024,-571.33980079,0.00014764,2]
[395135949,1764467441035,-200.0,0.00014764,2]
[395135950,1764467441043,-500.0,0.00014764,2]
[395135951,1764467441054,-500.0,0.00014785,2]
[395135952,1764467441063,-500.0,0.00014785,2]
[395135953,1764467441073,-500.0,0.00014785,2]
[395135954,1764467441083,-500.0,0.00014785,2]
[395135955,1764467441092,-500.0,0.00014785,2]
[395135956,1764467441101,-173.88347713,0.00014785,2]
[395135957,1764467441110,-500.0,0.00014785,2]
[395135958,1764467441120,-519.32805224,0.00014785,2]
[395135959,1764467441129,-500.0,0.00014814,2]
[395135960,1764467441138,-191.39201616,0.00014855,2]
[395135961,1764467441147,-500.0,0.00014883,2]
[395135962,1764467441157,-803.0,0.00014901,2]
[395135963,1764467441166,-201.77643634,0.00014901,2]
[395135964,1764467441175,-500.0,0.00014901,2]
[395135965,1764467441185,-15868.45320655,0.00014949,2]
[395135966,1764467441195,-18753.694309,0.00014956,2]
[395135967,1764467441204,-500.0,0.00014999,2]
[395135968,1764467441214,-500.0,0.00014999,2]
[395135969,1764467441223,-509.39630906,0.00014999,2]
[395135970,1764467441232,-500.0,0.00014999,2]
[395135971,1764467441242,-547.47201178,0.00014999,2]
[395135972,1764467441251,-509.0831174,0.00014999,2]
[395135973,1764467441260,-500.0,0.0001502,2]
[395135974,1764467441270,-416.537821,0.00015036,2]
[395135975,1764467441279,-803.0,0.00015038,2]
[395135976,1764467441288,-500.0,0.00015038,2]
[395135977,1764467441298,-153.18558819,0.0001504,2]
[395135978,1764467441309,-151.0,0.0001504,2]
[395135979,1764467441324,-553.64373807,0.0001504,2]
[395135980,1764467441333,-642.94,0.0001504,2]
[395135981,1764467441343,-1000.0,0.0001504,2]
[395135982,1764467441352,-900.0,0.00015068,2]
[395135983,1764467441362,-151.0,0.00015069,2]
[395135984,1764467441371,-500.0,0.00015157,2]
[395135985,1764467441381,-803.0,0.00015175,2]
[395135986,1764467441392,-500.0,0.00015175,2]
[395135987,1764467441403,-15868.45320655,0.00015227,2]
[395135988,1764467441413,-18753.694309,0.00015233,2]
[395135989,1764467441422,-161.89,0.00015246,2]
[395135990,1764467441431,-250.0,0.00015252,2]
[395135991,1764467441442,-250.0,0.00015252,2]
[395135992,1764467441451,-195.0,0.00015252,2]
[395135993,1764467441461,-250.0,0.00015252,2]
[395135994,1764467441470,-195.0,0.00015252,2]
[395135995,1764467441480,-150.0,0.00015288,2]
[395135996,1764467441490,-150.0,0.00015288,2]
[395135997,1764467441499,-150.0,0.00015288,2]
[395135998,1764467441509,-150.0,0.00015288,2]
[395135999,1764467441518,-150.0,0.00015288,2]
[395136000,1764467441527,-150.32345624,0.00015288,2]
[395136001,1764467441536,-150.55049466,0.00015288,2]
[395136002,1764467441546,-150.0,0.00015288,2]
[395136003,1764467441555,-150.0,0.00015288,2]
[395136004,1764467441563,-150.0,0.00015288,2]
[395136005,1764467441572,-150.0,0.00015288,2]
[395136006,1764467441582,-150.0,0.00015288,2]
[395136007,1764467441590,-500.0,0.00015294,2]
[395136008,1764467441599,-803.0,0.00015312,2]
[395136009,1764467441609,-500.0,0.00015312,2]
[395136010,1764467441619,-9101.51,0.00015363,2]
[395136011,1764467441628,-259.86377113,0.00015371,2]
[395136012,1764467441637,-150.0,0.00015382,2]
[395136013,1764467441646,-150.0,0.00015401,2]
[395136014,1764467441655,-416.537821,0.00015409,2]
[395136015,1764467441665,-191.39201616,0.00015411,2]
[395136016,1764467441674,-1000.0,0.00015429,2]
[395136017,1764467441683,-500.0,0.00015431,2]
[395136018,1764467441694,-150.0,0.00015442,2]
[395136019,1764467441703,-150.0,0.00015442,2]
[395136020,1764467441712,-803.0,0.00015449,2]
[395136021,1764467441722,-500.0,0.00015449,2]
[395136022,1764467441731,-150.0,0.00015458,2]
[395136023,1764467441740,-150.0,0.00015476,2]
[395136024,1764467442054,-150.0,0.000155,2]
[395136025,1764467442063,-15868.45320655,0.00015506,2]
[395136026,1764467442072,-18753.694309,0.00015511,2]
[395136027,1764467442081,-150.0,0.00015514,2]
[395136028,1764467442091,-255.0,0.00015521,2]
[395136029,1764467442100,-150.0,0.0001553,2]
[395136030,1764467442109,-500.0,0.00015568,2]
[395136031,1764467442119,-150.0,0.00015571,2]
[395136032,1764467442128,-803.0,0.00015586,2]
[395136033,1764467442137,-500.0,0.00015586,2]
[395136034,1764467442147,-151.8981321,0.00015588,2]
[395136035,1764467442156,-574.12855637,0.00015588,2]
[395136036,1764467442165,-666.72878,0.00015588,2]
[395136037,1764467442174,-1000.0,0.00015588,2]
[395136038,1764467442183,-150.0,0.00015597,2]
[395136039,1764467442192,-150.0,0.00015597,2]
[395136040,1764467442201,-151.0,0.00015617,2]
[395136041,1764467442220,-150.0,0.00015627,2]
[395136042,1764467442230,-150.0,0.00015627,2]
[395136043,1764467442240,-150.0,0.00015665,2]
[395136044,1764467442249,-1680.0,0.0001567,2]
[395136045,1764467442258,-182.0,0.000157,3]
[395136046,1764467442267,-551.76922525,0.00015705,2]
[395136047,1764467442276,-150.0,0.00015712,2]
[395136048,1764467442286,-803.0,0.00015723,2]
[395136049,1764467442295,-500.60475607,0.00015723,2]
[395136050,1764467442304,-150.0,0.00015741,2]
[395136051,1764467442314,-150.0,0.00015751,2]
[395136052,1764467442323,-150.0,0.00015751,2]
[395136053,1764467442333,-420.0,0.00015759,2]
[395136054,1764467442342,-150.0,0.0001576,2]
[395136055,1764467442352,-150.0,0.00015773,2]
[395136056,1764467442362,-416.537821,0.00015781,2]
[395136057,1764467442372,-15868.45320655,0.00015785,2]
[395136058,1764467442381,-18753.694309,0.00015789,2]
[395136059,1764467442391,-150.0,0.00015797,2]
[395136060,1764467442400,-150.0,0.00015854,2]
[395136061,1764467442409,-150.0,0.00015854,2]
[395136062,1764467442419,-150.0,0.00015854,2]
[395136063,1764467442429,-150.0,0.00015854,2]
[395136064,1764467442439,-803.0,0.0001586,2]
[395136065,1764467442449,-163.27944846,0.00015861,2]
[395136066,1764467442458,-267.46074303,0.00015861,2]
[395136067,1764467442468,-334.5472959,0.00015861,2]
[395136068,1764467442478,-311.1,0.00015861,2]
[395136069,1764467442488,-151.0,0.00015861,2]
[395136070,1764467442498,-150.0,0.00015905,2]
[395136071,1764467442507,-150.0,0.00015905,2]
[395136072,1764467442517,-150.0,0.00015925,2]
[395136073,1764467442527,-150.0,0.00015948,2]
[395136074,1764467442537,-150.0,0.00015967,2]
[395136075,1764467442547,-150.0,0.00015967,2]
[395136076,1764467442556,-500.0,0.00015973,2]
[395136077,1764467442565,-504.72891622,0.00015973,2]
[395136078,1764467442575,-165.08638781,0.00015973,2]
[395136079,1764467442584,-500.0,0.00015973,2]
[395136080,1764467442593,-500.0,0.00015973,2]
[395136081,1764467442603,-160.04783372,0.00015973,2]
[395136082,1764467442612,-500.0,0.00015973,2]
[395136083,1764467442621,-500.67033619,0.00015973,2]
[395136084,1764467442631,-168.83814577,0.00015973,2]
[395136085,1764467442640,-500.0,0.00015973,2]
[395136086,1764467442650,-503.30230408,0.00015973,2]
[395136087,1764467442659,-500.0,0.00015973,2]
[395136088,1764467442668,-545.80271006,0.00015973,2]
[395136089,1764467442678,-176.19485435,0.00015973,2]
[395136090,1764467442687,-500.0,0.00015973,2]
[395136091,1764467442697,-500.0,0.00015973,2]
[395136092,1764467442708,-500.0,0.00015973,2]
[395136093,1764467442718,-215.69681959,0.00015973,2]
[395136094,1764467442727,-500.0,0.00015973,2]
[395136095,1764467442737,-500.0,0.00015973,2]
[395136096,1764467442746,-500.0,0.00015973,2]
[395136097,1764467442756,-500.0,0.00015973,2]
[395136098,1764467442765,-160.07187961,0.00015973,2]
[395136099,1764467442775,-500.88533786,0.00015973,2]
[395136100,1764467442786,-500.0,0.00015973,2]
[395136101,1764467442795,-193.39138868,0.00015973,2]
[395136102,1764467442804,-201.11548058,0.00015973,2]
[395136103,1764467442814,-500.0,0.00015973,2]
[395136104,1764467442824,-500.0,0.00015973,2]
[395136105,1764467442834,-500.46020966,0.00015973,2]
[395136106,1764467442843,-500.21383285,0.00015973,2]
[395136107,1764467442853,-500.0,0.00015973,2]
[395136108,1764467442862,-500.0,0.00015973,2]
[395136109,1764467442872,-803.0,0.00015997,2]
[395136110,1764467442882,-522.79968162,0.00015999,2]
[395136111,1764467442891,-150.0,0.00016016,2]
[395136112,1764467442902,-150.0,0.00016043,2]
[395136114,1764467442911,-150.0,0.0001606,2]
[395136116,1764467442921,-150.0,0.0001606,2]
[395136117,1764467442931,-15868.45320655,0.00016064,2]
[395136118,1764467442941,-18753.694309,0.00016067,2]
[395136119,1764467442951,-150.0,0.0001608,2]
[395136120,1764467442961,-5523.0,0.000161,5]
[395136121,1764467442971,-803.0,0.00016134,2]
[395136122,1764467442981,-595.37131296,0.00016136,2]
[395136123,1764467442990,-579.42029305,0.00016136,2]
[395136124,1764467443003,-1000.0,0.00016136,2]
[395136125,1764467443012,-150.0,0.00016137,2]
[395136126,1764467443022,-150.0,0.00016137,2]
[395136127,1764467443031,-150.0,0.00016137,2]
[395136128,1764467443040,-416.537821,0.00016154,2]
[395136129,1764467443050,-151.0,0.00016165,2]
[395136130,1764467443060,-150.0,0.00016194,2]
[395136131,1764467443070,-554.66875914,0.00016199,2]
[395136132,1764467443080,-150.0,0.00016214,2]
[395136133,1764467443090,-150.0,0.00016214,2]
[395136134,1764467443099,-150.0,0.00016231,2]
[395136136,1764467443109,-150.0,0.00016258,2]
[395136138,1764467443118,-1600.0,0.00016263,2]
[395136139,1764467443132,-803.0,0.00016271,2]
[395136140,1764467443142,-150.0,0.00016307,2]
[395136141,1764467443152,-150.0,0.00016307,2]
[395136142,1764467443162,-150.0,0.00016326,2]
[395136143,1764467443172,-151.0,0.00016341,2]
[395136144,1764467443182,-15868.45320655,0.00016342,2]
[395136145,1764467443192,-18753.694309,0.00016344,2]
[395136146,1764467443202,-150.0,0.00016349,2]
[395136147,1764467443212,-150.0,0.00016369,2]
[395136148,1764467443223,-150.0,0.00016369,2]
[395136149,1764467443234,-803.0,0.00016408,2]
[395136150,1764467443244,-150.0,0.0001642,2]
[395136151,1764467443254,-150.0,0.0001642,2]
[395136152,1764467443265,-150.0,0.0001642,2]
[395136153,1764467443276,-150.0,0.0001642,2]
[395136154,1764467443286,-150.0,0.00016438,2]
[395136155,1764467443296,-150.0,0.00016438,2]
[395136156,1764467443306,-500.0,0.00016438,2]
[395136157,1764467443316,-500.0,0.00016438,2]
[395136158,1764467443326,-500.0,0.00016438,2]
[395136159,1764467443338,-500.0,0.00016438,2]
[395136160,1764467443348,-500.0,0.00016438,2]
[395136161,1764467443359,-500.0,0.00016438,2]
[395136162,1764467443369,-500.0,0.00016438,2]
[395136163,1764467443379,-500.0,0.00016438,2]
[395136164,1764467443390,-500.0,0.00016438,2]
[395136165,1764467443400,-500.0,0.00016438,2]
[395136166,1764467443409,-500.0,0.00016438,2]
[395136167,1764467443420,-500.0,0.00016438,2]
[395136168,1764467443429,-500.0,0.00016438,2]
[395136169,1764467443440,-500.0,0.00016438,2]
[395136170,1764467443451,-578.51299171,0.00016438,2]
[395136171,1764467443461,-500.0,0.00016438,2]
[395136172,1764467443471,-9466.52,0.00016438,2]
[395136173,1764467443480,-900.0,0.00016438,2]
[395136174,1764467443491,-6608.79,0.00016438,2]
[395136175,1764467443501,-800.0,0.00016438,2]
[395136176,1764467443511,-150.0,0.00016477,2]
[395136177,1764467443520,-150.0,0.00016501,2]
[395136178,1764467443531,-150.0,0.00016514,2]
[395136179,1764467443541,-501.57760606,0.00016521,2]
[395136180,1764467443551,-1000.745763,0.00016521,2]
[395136181,1764467443560,-495.14510969,0.00016521,2]
[395136182,1764467443570,-916.80275832,0.00016521,2]
[395136183,1764467443580,-1001.35128612,0.00016521,2]
[395136184,1764467443590,-1000.0,0.00016521,2]
[395136185,1764467443599,-1000.0,0.00016521,2]
[395136186,1764467443609,-502.56103431,0.00016521,2]
[395136187,1764467443619,-1000.0,0.00016521,2]
[395136188,1764467443629,-957.90842426,0.00016521,2]
[395136189,1764467443639,-360.33354768,0.00016521,2]
[395136190,1764467443648,-1000.0,0.00016521,2]
[395136191,1764467443658,-1000.0,0.00016521,2]
[395136192,1764467443668,-1001.18740995,0.00016521,2]
[395136194,1764467443678,-1000.0,0.00016521,2]
[395136196,1764467443687,-1000.0,0.00016521,2]
[395136197,1764467443697,-1000.0,0.00016521,2]
[395136198,1764467443707,-500.92969355,0.00016521,2]
[395136199,1764467443717,-150.0,0.00016523,2]
[395136200,1764467443727,-150.0,0.00016523,2]
[395136201,1764467443736,-416.537821,0.00016527,2]
[395136202,1764467443745,-150.0,0.00016533,2]
[395136203,1764467443755,-803.0,0.00016545,2]
[395136204,1764467443765,-150.0,0.00016562,2]
[395136205,1764467443775,-150.0,0.00016575,2]
[395136206,1764467443784,-150.0,0.00016575,2]
[395136207,1764467443795,-150.0,0.00016609,2]
[395136208,1764467443804,-15868.45320655,0.00016621,2]
[395136210,1764467443815,-18753.694309,0.00016622,2]
[395136211,1764467443825,-150.0,0.00016647,2]
[395136212,1764467443834,-150.0,0.00016647,2]
[395136213,1764467443844,-150.0,0.00016677,2]
[395136214,1764467443854,-150.0,0.00016677,2]
[395136215,1764467443868,-803.0,0.00016682,2]
[395136216,1764467443878,-752.13358325,0.00016684,2]
[395136217,1764467443888,-1000.0,0.00016684,2]
[395136218,1764467443898,-150.0,0.00016703,2]
[395136219,1764467443908,-179.75220737,0.00016712,2]
[395136220,1764467443918,-150.0,0.00016712,2]
[395136221,1764467443928,-237.3246584,0.00016713,2]
[395136222,1764467443939,-433.0,0.0001673,2]
[395136223,1764467443949,-150.0,0.00016744,2]
[395136224,1764467443959,-150.0,0.0001676,2]
[395136225,1764467443969,-150.0,0.00016774,2]
[395136226,1764467443980,-150.0,0.00016798,2]
[395136227,1764467443991,-150.0,0.00016816,2]
[395136228,1764467444006,-803.0,0.00016819,2]
[395136229,1764467444016,-150.0,0.00016832,2]
[395136230,1764467444026,-150.0,0.00016832,2]
[395136231,1764467444036,-217.8274238,0.00016834,2]
[395136232,1764467444047,-150.0,0.00016849,2]
[395136233,1764467444057,-200.0,0.00016863,2]
[395136234,1764467444067,-200.0,0.00016864,2]
[395136235,1764467444077,-200.0,0.00016864,2]
[395136236,1764467444087,-200.0,0.00016864,2]
[395136237,1764467444097,-200.0,0.00016864,2]
[395136238,1764467444107,-150.0,0.00016873,2]
[395136239,1764467444117,-1347.0,0.00016877,2]
[395136240,1764467444127,-150.0,0.00016892,2]
[395136241,1764467444137,-10000.0,0.000169,2]
[395136242,1764467444147,-988.5956,0.000169,2]
[395136243,1764467444157,-165.3482,0.000169,2]
[395136244,1764467444167,-15868.45320655,0.000169,2]
[395136245,1764467444177,-550.99852635,0.000169,2]
[395136246,1764467444187,-1757.13199891,0.000169,2]
[395136247,1764467444197,-636.713413,0.000169,2]
[395136248,1764467444208,-18753.694309,0.000169,2]
[395136249,1764467444217,-416.537821,0.000169,2]
[395136250,1764467444230,-500.0,0.000169,2]
[395136251,1764467444240,-500.0,0.000169,2]
[395136252,1764467444250,-500.0,0.000169,2]
[395136253,1764467444260,-500.0,0.000169,2]
[395136254,1764467444270,-500.0,0.000169,2]
[395136255,1764467444281,-500.0,0.000169,2]
[395136256,1764467444291,-500.0,0.000169,2]
[395136257,1764467444301,-500.0,0.000169,2]
[395136258,1764467444312,-500.0,0.000169,2]
[395136259,1764467444322,-500.0,0.000169,2]
[395136260,1764467444333,-500.0,0.000169,2]
[395136261,1764467444342,-500.0,0.000169,2]
[395136262,1764467444353,-500.0,0.000169,2]
[395136263,1764467444363,-500.0,0.000169,2]
[395136264,1764467444373,-500.0,0.000169,2]
[395136265,1764467444383,-500.0,0.000169,2]
[395136266,1764467444394,-197.92719606,0.000169,2]
[395136267,1764467444404,-11529.0,0.000169,2]
[395136268,1764467444414,-961.25002458,0.00016904,2]
[395136269,1764467444427,-222.29257723,0.00016921,2]
[395136270,1764467444437,-803.0,0.00016956,2]
[395136271,1764467444447,-1520.19807694,0.0001697,2]
[395136272,1764467444457,-500.0,0.00016973,2]
[395136273,1764467444467,-366.95471126,0.00016973,2]
[395136274,1764467444476,-500.0,0.00016973,2]
[395136275,1764467444485,-500.0,0.00016973,2]
[395136276,1764467444495,-500.0,0.00016973,2]
[395136277,1764467444504,-162.090508,0.00016973,2]
[395136278,1764467444515,-507.2295556,0.00016973,2]
[395136279,1764467444525,-500.0,0.00016973,2]
[395136280,1764467444535,-502.42313954,0.00016973,2]
[395136281,1764467444544,-500.0,0.00016973,2]
[395136282,1764467444554,-500.0,0.00016973,2]
[395136283,1764467444563,-500.49965341,0.00016973,2]
[395136284,1764467444573,-500.0,0.00016973,2]
[395136285,1764467444582,-500.0,0.00016973,2]
[395136286,1764467444591,-176.66973248,0.00016973,2]
[395136287,1764467444601,-500.0,0.00016973,2]
[395136288,1764467444611,-500.0,0.00016973,2]
[395136289,1764467444623,-500.0,0.00016973,2]
[395136290,1764467444633,-500.0,0.00016973,2]
[395136291,1764467444643,-500.0,0.00016973,2]
[395136292,1764467444654,-415.54250471,0.00016973,2]
[395136293,1764467444664,-167.3210545,0.00016973,2]
[395136294,1764467444674,-500.0,0.00016973,2]
[395136295,1764467444683,-500.838144,0.00016973,2]
[395136296,1764467444694,-500.38978168,0.00016973,2]
[395136297,1764467444704,-500.0,0.00016973,2]
[395136298,1764467444714,-500.0,0.00016973,2]
[395136299,1764467444723,-500.0,0.00016973,2]
[395136300,1764467444733,-500.0,0.00016973,2]
[395136301,1764467444742,-500.0,0.00016973,2]
[395136302,1764467444752,-500.0,0.00016973,2]
[395136303,1764467444762,-187.03419553,0.00016973,2]
[395136304,1764467444771,-172.99922432,0.00016973,2]
[395136305,1764467444780,-500.0,0.00016973,2]
[395136306,1764467444790,-500.0,0.00016973,2]
[395136307,1764467444800,-500.0,0.00016973,2]
[395136308,1764467444809,-215.92719524,0.00016973,2]
[395136309,1764467444821,-500.0,0.00016973,2]
[395136310,1764467444831,-500.0,0.00016973,2]
[395136311,1764467444841,-500.0,0.00016973,2]
[395136312,1764467444851,-500.0,0.00016973,2]
[395136313,1764467444861,-500.0,0.00016973,2]
[395136314,1764467444870,-204.09584053,0.00016986,2]
[395136315,1764467444880,-150.0,0.00016986,2]
[395136316,1764467444895,-165.6418434,0.00016986,2]
[395136317,1764467444905,-204.30018079,0.00016986,2]
[395136318,1764467444915,-150.10346577,0.00016986,2]
[395136319,1764467444925,-168.80232589,0.00016986,2]
[395136320,1764467444934,-239.89101121,0.00016986,2]
[395136321,1764467444944,-155.69497856,0.00016986,2]
[395136322,1764467444955,-151.57196874,0.00016986,2]
[395136323,1764467444965,-152.10525801,0.00016986,2]
[395136324,1764467444974,-244.26630786,0.00016986,2]
[395136325,1764467444984,-152.51466941,0.00016986,2]
[395136326,1764467444994,-222.23133542,0.0001699,2]
[395136327,1764467445008,-500.0,0.00016993,2]
[395136328,1764467445017,-500.0,0.00016993,2]
[395136329,1764467445027,-500.0,0.00016993,2]
[395136330,1764467445038,-500.0,0.00016993,2]
[395136331,1764467445048,-805.2959694,0.00016994,2]
[395136332,1764467445059,-730922.7942557,0.00016994,2]
[395136333,1764467445068,-25581.8810769,0.00016994,2]
[395136334,1764467445080,-151.0,0.00016997,2]
[395136335,1764467445089,-300.0,0.00016999,2]
[395136336,1764467445099,-300.0,0.00016999,2]
[395136337,1764467445109,-306.68552454,0.00016999,2]
[395136338,1764467445118,-300.0,0.00016999,2]
[395136339,1764467445128,-500.0,0.00016999,2]
[395136340,1764467445137,-500.0,0.00016999,2]
[395136341,1764467445147,-500.0,0.00016999,2]
[395136342,1764467445156,-500.0,0.00016999,2]
[395136343,1764467445172,-500.0,0.00016999,2]
[395136344,1764467445186,-500.0,0.00016999,2]
[395136345,1764467445197,-500.0,0.00016999,2]
[395136346,1764467445208,-498.79922411,0.00016999,2]
[395136347,1764467445218,-4951829.52067417,0.00017,2]
[395136348,1764467445309,-2452.18674416,0.00017,2]
[395136349,1764467445329,-315138.68328318,0.00017,2]
[395136350,1764467445640,-3969.16000327,0.000169,2]
[395136351,1764467445649,-500.0,0.00016973,2]
[395136352,1764467445659,-500.0,0.00016973,2]
[395136353,1764467445669,-512733.95739231,0.00017,2]
[395136354,1764467445679,-1367029.64057732,0.00017,2]
[395136360,1764467446628,-546107.99999964,0.00017,2]
[395136362,1764467447840,-763771.29342934,0.00017,2]
[395136392,1764467701442,2000.00080959,0.00022,30]
[395136419,1764468173650,200.0,0.00013699,2]
[395136422,1764468253420,9280.82,0.00013416,2]
[395136423,1764468253462,10000.01,0.00013416,2]
[395136424,1764468253496,3472.4,0.00013416,2]
[395136452,1764468406151,150.0,0.00013394,2]
[395136468,1764468516909,500.0,0.00013407,2]
[395136471,1764468598600,5877.61,0.00013476,2]
[395136472,1764468598621,73.71,0.00013476,2]
[395136475,1764468632288,-202.0,0.00013909,2]
[395136476,1764468632297,-300.0,0.00013909,2]
[395136477,1764468632306,-250.0,0.00013909,2]
[395136478,1764468632315,-587.14935823,0.00013909,2]
[395136479,1764468632326,-571.4729141,0.00013909,2]
[395136480,1764468632342,-1592.37772767,0.00013909,2]
[395136481,1764468632351,-307.34070097,0.00013909,2]
[395136482,1764468632360,-300.0,0.00013974,2]
[395136483,1764468632369,-300.0,0.00013974,2]
[395136484,1764468632378,-376.89269333,0.00013974,2]
[395136485,1764468632387,-1200.0,0.0001407,2]
[395136486,1764468632397,-300.0,0.0001407,2]
[395136487,1764468632406,-150.0,0.00014071,2]
[395136488,1764468632415,-1318.18113146,0.00014071,2]
[395136489,1764468632424,-347.25121731,0.00014072,2]
[395136490,1764468632439,-500.0,0.00014072,2]
[395136491,1764468632453,-500.0,0.00014072,2]
[395136492,1764468632463,-378.67035436,0.00014072,2]
[395136493,1764468632474,-121.32964564,0.00014072,2]
[395136494,1764468632488,-150.58165359,0.00014072,2]
[395136495,1764468632499,-349.41834641,0.00014072,2]
[395136496,1764468632508,-500.0,0.00014072,2]
[395136497,1764468632518,-477.03284089,0.00014072,2]
[395136498,1764468632557,-12.65776505,0.00014072,2]
[395136500,1764468632567,-487.35094711,0.00014072,2]
[395136501,1764468632578,-12.64905289,0.00014072,2]
[395136502,1764468632587,-500.0,0.00014072,2]
[395136503,1764468632596,-160.15580808,0.00014072,2]
[395136504,1764468632607,-339.84419192,0.00014072,2]
[395136505,1764468632616,-164.98959137,0.00014072,2]
[395136513,1764468638684,-533.88194831,0.00013973,2]
[395136515,1764468638695,-335.01040863,0.00014072,2]
[395136517,1764468638704,-500.0,0.00014072,2]
[395136519,1764468638713,-500.0,0.00014072,2]
[395136521,1764468638723,-500.0,0.00014072,2]
[395136523,1764468638732,-500.0,0.00014072,2]
[395136524,1764468638743,-500.0,0.00014072,2]
[395136526,1764468638752,-500.0,0.00014072,2]
[395136528,1764468638761,-250.00000001,0.00014072,2]
[395136529,1764468638771,-500.0,0.00014072,2]
[395136530,1764468638780,-500.0,0.00014072,2]
[395136531,1764468638789,-500.0,0.00014072,2]
[395136532,1764468638799,-500.0,0.00014072,2]
[395136533,1764468638809,-500.0,0.00014072,2]
[395136534,1764468638819,-500.0,0.00014072,2]
[395136535,1764468638829,-500.0,0.00014072,2]
[395136536,1764468638838,-500.0,0.00014072,2]
[395136537,1764468638847,-500.0,0.00014072,2]
[395136538,1764468638856,-500.0,0.00014072,2]
[395136539,1764468638865,-500.0,0.00014072,2]
[395136540,1764468638874,-500.0,0.00014072,2]
[395136541,1764468638883,-500.0,0.00014072,2]
[395136542,1764468638893,-500.0,0.00014072,2]
[395136543,1764468638902,-500.0,0.00014072,2]
[395136544,1764468638911,-500.0,0.00014072,2]
[395136545,1764468638921,-500.0,0.00014072,2]
[395136546,1764468638931,-500.0,0.00014072,2]
[395136547,1764468638940,-500.0,0.00014072,2]
[395136548,1764468638949,-500.0,0.00014072,2]
[395136549,1764468638959,-500.0,0.00014072,2]
[395136550,1764468638968,-500.0,0.00014072,2]
[395136551,1764468638978,-500.0,0.00014072,2]
[395136552,1764468638989,-500.0,0.00014072,2]
[395136553,1764468638998,-500.0,0.00014072,2]
[395136554,1764468639007,-500.0,0.00014072,2]
[395136555,1764468639017,-500.0,0.00014072,2]
[395136556,1764468639026,-500.0,0.00014072,2]
[395136557,1764468639036,-500.0,0.00014072,2]
[395136558,1764468639045,-500.0,0.00014072,2]
[395136559,1764468639056,-500.0,0.00014072,2]
[395136560,1764468639065,-500.0,0.00014072,2]
[395136561,1764468639074,-500.0,0.00014072,2]
[395136562,1764468639083,-500.0,0.00014072,2]